bitfinex/quotes_BTCUSD_20250326
["timestamp","ask_amount","ask_price","bid_price","bid_amount"]
[1743004792155,0.0003388,86910.0,86909.0,0.80425158]
[1743004792332,0.0003388,86910.0,86909.0,0.80525158]
[1743004792746,0.0003388,86910.0,86909.0,0.79925158]
[1743004793131,0.0003388,86910.0,86909.0,0.80525158]
[1743004793489,0.0003388,86910.0,86909.0,1.03376686]
[1743004793687,0.0003388,86910.0,86909.0,1.50752837]
[1743004793919,0.0003388,86910.0,86909.0,1.52206922]
[1743004794067,0.0003388,86910.0,86909.0,1.51706922]
[1743004794267,0.0003388,86910.0,86909.0,1.52206922]
[1743004794674,0.0003388,86910.0,86909.0,1.51106922]
[1743004794993,0.0003388,86910.0,86909.0,1.52206922]
[1743004795661,0.0003388,86910.0,86909.0,1.51606922]
[1743004795864,0.0003388,86910.0,86909.0,1.52206922]
[1743004796324,0.0003388,86910.0,86909.0,1.52182922]
[1743004796516,0.0003388,86910.0,86909.0,1.38690922]
[1743004796718,0.0003388,86910.0,86909.0,1.52182922]
[1743004798663,0.0003388,86910.0,86909.0,1.52166922]
[1743004799167,0.0003388,86910.0,86909.0,1.40737158]
[1743004799733,0.0003388,86910.0,86909.0,1.40137158]
[1743004800134,0.0003388,86910.0,86909.0,1.40737158]
[1743004800958,0.0493,86910.0,86909.0,0.41879973]
[1743004801604,0.590929,86910.0,86909.0,0.43334058]
[1743004801824,0.590929,86910.0,86909.0,0.42734058]
[1743004802016,0.668629,86910.0,86909.0,0.42834058]
[1743004802393,0.67993559,86910.0,86909.0,0.41379973]
[1743004802608,0.67993559,86910.0,86909.0,0.42234058]
[1743004803022,0.68859471,86910.0,86909.0,0.42234058]
[1743004804122,0.80285235,86910.0,86909.0,0.42234058]
[1743004804364,0.80285235,86910.0,86909.0,0.13295068]
[1743004804365,1.60285471,86910.0,86909.0,0.13295068]
[1743004804570,1.48411071,86910.0,86909.0,0.04085694]
[1743004804772,1.48411071,86910.0,86901.0,0.0001694]
[1743004804773,0.541651,86902.0,86901.0,0.0001694]
[1743004805679,0.541651,86902.0,86901.0,4e-07]
[1743004805680,0.663651,86902.0,86901.0,4e-07]
[1743004807430,0.68681069,86902.0,86901.0,4e-07]
[1743004808075,0.541712,86880.0,86879.0,0.0001693]
[1743004808278,0.541712,86880.0,86879.0,0.00025457]
[1743004808279,0.617312,86880.0,86879.0,0.00025457]
[1743004810678,0.73156964,86880.0,86879.0,0.00025457]
[1743004811018,0.73356964,86880.0,86879.0,0.00025457]
[1743004811247,0.74241883,86880.0,86879.0,0.00025457]
[1743004811360,0.74041883,86880.0,86879.0,0.00025457]
[1743004811588,0.76393106,86880.0,86879.0,0.00025457]
[1743004811790,0.76593106,86880.0,86879.0,0.00025457]
[1743004812040,0.65167342,86880.0,86879.0,0.00025457]
[1743004812597,0.57607342,86880.0,86879.0,0.00025457]
[1743004813010,0.01184919,86880.0,86879.0,0.00025457]
[1743004813148,0.003,86880.0,86879.0,0.25651042]
[1743004813363,0.001,86880.0,86879.0,0.25651042]
[1743004814021,0.003,86880.0,86879.0,0.66431042]
[1743004814294,0.001,86880.0,86879.0,0.66431042]
[1743004814484,0.530169,86893.0,86887.0,0.230181]
[1743004814686,0.230167,86894.0,86889.0,0.24471785]
[1743004814802,0.230168,86893.0,86890.0,0.73444]
[1743004815873,0.3,86892.0,86891.0,0.230173]
[1743004816099,0.3,86892.0,86891.0,0.241681]
[1743004816501,0.3,86892.0,86890.0,0.73444]
[1743004816879,0.3,86893.0,86891.0,0.230173]
[1743004817092,0.3,86893.0,86892.0,0.241678]
[1743004817312,0.3,86893.0,86892.0,0.25621885]
[1743004817516,0.3,86893.0,86890.0,0.59792]
[1743004817719,0.541676,86893.0,86892.0,0.13664]
[1743004817916,0.541676,86893.0,86891.0,0.001]
[1743004817917,0.241678,86892.0,86891.0,0.001]
[1743004818141,0.541681,86891.0,86890.0,0.59792]
[1743004818554,0.530173,86891.0,86890.0,0.59792]
[1743004818754,0.541681,86891.0,86890.0,0.59792]
[1743004818938,0.65593864,86891.0,86890.0,0.59792]
[1743004819584,0.541681,86891.0,86890.0,0.59792]
[1743004820214,0.541712,86880.0,86879.0,0.00025457]
[1743004821010,1.148743,86880.0,86879.0,5.7e-07]
[1743004821209,0.541712,86880.0,86879.0,5.7e-07]
[1743004821436,0.66477933,86880.0,86879.0,5.7e-07]
[1743004821636,0.84403514,86880.0,86879.0,5.7e-07]
[1743004822246,0.541806,86846.0,86845.0,0.0001694]
[1743004822465,0.541806,86846.0,86845.0,0.00025473]
[1743004823741,0.55315131,86846.0,86845.0,0.00025473]
[1743004823954,0.55315131,86846.0,86845.0,0.00225473]
[1743004824669,0.32285931,86846.0,86845.0,0.00225473]
[1743004825400,0.31134531,86846.0,86845.0,0.00225473]
[1743004825604,0.3,86846.0,86845.0,0.01476873]
[1743004827680,0.3,86846.0,86845.0,0.61280873]
[1743004827901,0.3,86846.0,86845.0,0.60129473]
[1743004828100,0.311514,86846.0,86845.0,0.60129473]
[1743004828303,0.3,86846.0,86845.0,0.60129473]
[1743004828852,0.311514,86846.0,86845.0,0.60129473]
[1743004829090,0.3,86846.0,86845.0,0.60129473]
[1743004829481,0.311514,86846.0,86845.0,0.60129473]
[1743004829689,0.3,86846.0,86845.0,0.60129473]
[1743004829891,0.311514,86846.0,86845.0,0.60129473]
[1743004830841,0.3,86846.0,86845.0,0.60129473]
[1743004830974,0.311514,86846.0,86845.0,0.60129473]
[1743004831179,0.3,86846.0,86845.0,0.60129473]
[1743004831398,0.311514,86846.0,86845.0,0.60129473]
[1743004832645,0.56944163,86846.0,86845.0,0.60129473]
[1743004833544,0.56320467,86846.0,86845.0,0.60129473]
[1743004833884,0.56320467,86846.0,86845.0,0.60029473]
[1743004834092,0.56320467,86846.0,86845.0,0.59829473]
[1743004834297,0.541806,86846.0,86845.0,0.59829473]
[1743004834499,0.544806,86846.0,86845.0,0.59829473]
[1743004834767,0.65906364,86846.0,86845.0,0.59829473]
[1743004834935,0.544806,86846.0,86845.0,0.59829473]
[1743004835143,0.544806,86846.0,86845.0,0.59929473]
[1743004835746,0.544806,86846.0,86845.0,0.59829473]
[1743004836312,0.547806,86846.0,86845.0,0.59829473]
[1743004836691,0.549806,86846.0,86845.0,0.59829473]
[1743004837088,0.66406364,86846.0,86845.0,0.00025473]
[1743004838478,0.549806,86846.0,86845.0,0.00025473]
[1743004843032,0.541857,86828.0,86827.0,6e-07]
[1743004843241,0.230329,86833.0,86814.0,0.0002394]
[1743004843242,0.541892,86815.0,86814.0,0.0002394]
[1743004843408,0.541892,86815.0,86803.0,0.1363694]
[1743004843409,0.541924,86804.0,86803.0,0.0001694]
[1743004844655,0.55058004,86804.0,86803.0,0.0001694]
[1743004844860,0.5506887,86804.0,86803.0,0.0001694]
[1743004849023,0.66494634,86804.0,86803.0,0.0001694]
[1743004849229,0.5506887,86804.0,86803.0,0.0001694]
[1743004849843,0.541941,86798.0,86797.0,0.5003694]
[1743004850244,0.0202847,86804.0,86797.0,0.5003694]
[1743004850245,0.0087647,86804.0,86803.0,0.241926]
[1743004850852,0.00010866,86804.0,86803.0,0.66426685]
[1743004851046,0.00010866,86804.0,86803.0,0.77852449]
[1743004851487,0.00010866,86804.0,86803.0,0.66426685]
[1743004852244,0.00010866,86804.0,86803.0,0.66443645]
[1743004853387,0.0003392,86814.0,86813.0,0.241899]
[1743004853589,0.0003392,86814.0,86813.0,0.37827102]
[1743004854684,0.0003392,86814.0,86813.0,0.24231102]
[1743004855061,0.0003392,86814.0,86813.0,0.37867102]
[1743004855295,0.0003392,86814.0,86813.0,0.78847102]
[1743004856526,0.0003392,86814.0,86813.0,0.80301187]
[1743004856700,0.0003392,86814.0,86813.0,0.80401187]
[1743004856923,0.0003392,86814.0,86813.0,0.93341187]
[1743004857281,0.0003392,86814.0,86813.0,1.04766951]
[1743004857476,0.0003392,86814.0,86813.0,1.08049824]
[1743004857722,0.0003392,86814.0,86813.0,1.09559457]
[1743004857921,0.0003392,86814.0,86813.0,1.09659457]
[1743004858121,0.0003392,86814.0,86813.0,1.09559457]
[1743004858327,0.0003392,86814.0,86813.0,1.09359457]
[1743004858861,0.0013392,86814.0,86813.0,1.09559457]
[1743004859038,0.3,86840.0,86839.0,0.011515]
[1743004859269,0.3,86840.0,86839.0,1.39770765]
[1743004859478,0.3,86841.0,86840.0,0.01454085]
[1743004859598,0.3,86843.0,86842.0,0.01454085]
[1743004859794,0.3,86843.0,86842.0,0.02605585]
[1743004860050,0.3,86843.0,86842.0,0.25635885]
[1743004860374,0.011513,86857.0,86852.0,0.01454085]
[1743004860614,0.011512,86859.0,86852.0,0.01454085]
[1743004860785,0.011512,86859.0,86846.0,0.011514]
[1743004860786,0.011511,86872.0,86862.0,0.011512]
[1743004860987,0.230243,86865.0,86863.0,0.13648]
[1743004861206,0.230247,86863.0,86859.0,0.230256]
[1743004861370,0.3,86862.0,86860.0,0.13648]
[1743004861581,0.011513,86855.0,86853.0,0.4064608]
[1743004861800,0.011513,86854.0,86853.0,0.4064608]
[1743004861952,0.011513,86854.0,86853.0,0.5429008]
[1743004862367,0.011513,86854.0,86853.0,0.4064608]
[1743004862621,0.011513,86854.0,86839.0,0.59836]
[1743004862622,0.011515,86843.0,86839.0,0.59836]
[1743004862792,0.241807,86846.0,86841.0,0.230304]
[1743004862992,0.230298,86844.0,86840.0,0.15094085]
[1743004863217,0.241819,86842.0,86840.0,0.15094085]
[1743004863418,0.241823,86840.0,86839.0,0.59836]
[1743004863763,0.241823,86840.0,86839.0,0.73476]
[1743004864422,0.230304,86842.0,86839.0,0.73476]
[1743004864621,0.011515,86841.0,86839.0,0.73476]
[1743004864822,0.241823,86840.0,86839.0,0.74476]
[1743004865180,0.241823,86840.0,86839.0,0.73976]
[1743004865382,0.541823,86840.0,86839.0,0.73476]
[1743004865699,0.541823,86840.0,86839.0,0.73976]
[1743004865904,0.3,86840.0,86839.0,0.99612685]
[1743004866502,0.3,86840.0,86839.0,1.00012685]
[1743004867102,0.31105735,86860.0,86847.0,0.011514]
[1743004867293,0.3,86854.0,86852.0,0.230276]
[1743004867486,0.3,86854.0,86850.0,0.01454085]
[1743004867687,0.3,86854.0,86852.0,0.230276]
[1743004868152,0.3,86854.0,86853.0,0.230274]
[1743004868394,0.3,86854.0,86851.0,0.230278]
[1743004868593,0.01163548,86864.0,86855.0,0.02605385]
[1743004868839,0.01163548,86864.0,86859.0,0.011512]
[1743004869153,0.00012348,86864.0,86861.0,0.24479285]
[1743004869298,0.3,86861.0,86857.0,0.01454085]
[1743004869529,0.3,86858.0,86857.0,0.01454085]
[1743004869736,0.53026,86858.0,86857.0,0.01454085]
[1743004870330,0.3,86858.0,86857.0,0.01454085]
[1743004870541,0.53026,86858.0,86857.0,0.01454085]
[1743004870723,0.3,86858.0,86857.0,0.01454085]
[1743004870921,0.3,86858.0,86857.0,0.25631685]
[1743004871643,0.530255,86860.0,86859.0,0.01454085]
[1743004871965,0.241774,86858.0,86857.0,0.01454085]
[1743004872335,0.241774,86858.0,86705.0,1.06568979]
[1743004872336,0.241788,86853.0,86849.0,0.01454085]
[1743004872536,0.230277,86852.0,86851.0,0.01454085]
[1743004872795,0.24179,86852.0,86851.0,0.15030085]
[1743004873065,0.011513,86856.0,86851.0,0.16181385]
[1743004873267,0.3,86858.0,86854.0,0.230271]
[1743004873472,0.011512,86863.0,86855.0,0.01454085]
[1743004873680,0.530255,86860.0,86857.0,0.230263]
[1743004874231,0.531255,86860.0,86857.0,0.230263]
[1743004874452,0.301,86860.0,86857.0,0.25631685]
[1743004874646,0.001,86860.0,86859.0,0.011512]
[1743004874847,0.001,86860.0,86859.0,0.25631085]
[1743004875197,0.3,86863.0,86859.0,0.25631085]
[1743004875474,0.3,86860.0,86859.0,0.24479885]
[1743004876049,0.3,86860.0,86859.0,0.25631085]
[1743004876245,0.3,86860.0,86859.0,0.24579885]
[1743004876581,0.01163548,86864.0,86863.0,0.24478785]
[1743004876582,0.00012348,86864.0,86863.0,0.24478785]
[1743004876761,0.00012348,86864.0,86863.0,0.25629985]
[1743004877151,0.00012348,86864.0,86863.0,0.01454085]
[1743004877351,0.53036748,86864.0,86863.0,0.01454085]
[1743004877771,0.53036748,86864.0,86863.0,0.15018085]
[1743004878550,0.30012348,86864.0,86863.0,0.15018085]
[1743004879117,0.00012348,86864.0,86863.0,0.39193985]
[1743004879774,0.24187948,86864.0,86863.0,0.15018085]
[1743004880111,0.24187948,86864.0,86863.0,0.38046785]
[1743004880112,0.00012348,86864.0,86863.0,0.38046785]
[1743004880306,0.00012348,86864.0,86863.0,0.01454085]
[1743004880507,0.53036748,86864.0,86863.0,0.01454085]
[1743004880661,0.54187948,86864.0,86863.0,0.15022085]
[1743004881073,0.54187948,86864.0,86859.0,0.0001695]
[1743004881074,0.541767,86860.0,86859.0,0.0001695]
[1743004882237,0.3,86860.0,86859.0,0.0001695]
[1743004882388,0.530255,86860.0,86859.0,0.0001695]
[1743004882590,0.3,86860.0,86859.0,0.2419395]
[1743004883364,0.3,86860.0,86859.0,0.25648035]
[1743004884423,0.3,86860.0,86859.0,0.24496835]
[1743004884617,0.3,86860.0,86859.0,0.65142915]
[1743004884800,0.00012348,86864.0,86863.0,0.25629985]
[1743004886110,0.00012348,86864.0,86863.0,0.85437985]
[1743004886771,0.00112348,86864.0,86863.0,0.85437985]
[1743004887363,0.00112348,86864.0,86863.0,0.01894885]
[1743004887501,0.00112348,86864.0,86863.0,0.24919585]
[1743004887724,0.00112348,86864.0,86863.0,0.25119585]
[1743004887927,0.00112348,86864.0,86863.0,0.26270785]
[1743004888856,0.00112348,86864.0,86863.0,0.02094885]
[1743004889059,0.54287948,86864.0,86863.0,0.02094885]
[1743004889255,0.30112348,86864.0,86863.0,0.15726885]
[1743004889475,0.30112348,86864.0,86863.0,0.39902785]
[1743004889903,0.30112348,86864.0,86863.0,0.38751585]
[1743004890103,0.30012348,86864.0,86863.0,0.38651585]
[1743004890340,0.53036748,86864.0,86863.0,0.15626885]
[1743004890548,0.54187948,86864.0,86863.0,0.15526885]
[1743004890762,0.54187948,86864.0,86863.0,0.15530885]
[1743004891075,0.30012348,86864.0,86863.0,0.40006785]
[1743004891273,0.30012348,86864.0,86863.0,0.38855585]
[1743004891502,0.30012348,86864.0,86863.0,0.15730885]
[1743004891859,0.30012348,86864.0,86863.0,0.38555585]
[1743004892059,0.30012348,86864.0,86863.0,0.15530885]
[1743004892261,0.59953071,86864.0,86863.0,0.003]
[1743004892423,0.54187948,86864.0,86863.0,0.003]
[1743004892901,0.54221848,86864.0,86863.0,0.004]
[1743004893018,0.53070648,86864.0,86863.0,0.003]
[1743004893241,0.30046248,86864.0,86863.0,0.002]
[1743004893464,0.530255,86860.0,86859.0,0.4066303]
[1743004893662,0.541767,86860.0,86859.0,0.5432303]
[1743004893885,0.3,86860.0,86859.0,0.5432303]
[1743004894082,0.530255,86860.0,86859.0,0.5432303]
[1743004894488,0.3,86860.0,86859.0,0.5432303]
[1743004894766,0.3,86860.0,86859.0,0.5452303]
[1743004894974,0.541767,86860.0,86859.0,0.5482303]
[1743004895179,0.541767,86860.0,86859.0,0.5481503]
[1743004895796,0.541767,86860.0,86859.0,0.4116303]
[1743004896386,0.541767,86860.0,86859.0,0.0051695]
[1743004897519,0.54186,86827.0,86826.0,0.4064608]
[1743004897719,0.54186,86827.0,86820.0,0.59808]
[1743004897720,0.241876,86821.0,86820.0,0.59808]
[1743004897921,0.541876,86821.0,86820.0,0.59808]
[1743004898970,0.541876,86821.0,86820.0,0.59849202]
[1743004899529,0.79180991,86821.0,86820.0,0.00041202]
[1743004900379,0.81487513,86821.0,86820.0,0.00041202]
[1743004900994,0.81487513,86821.0,86820.0,0.00341202]
[1743004901196,1.73113313,86821.0,86820.0,0.00341202]
[1743004901341,1.57456813,86821.0,86820.0,0.00341202]
[1743004901536,1.38608713,86821.0,86820.0,0.00041202]
[1743004901738,1.20989013,86821.0,86820.0,0.00041202]
[1743004901935,1.20989013,86821.0,86820.0,0.00241202]
[1743004901936,0.70061749,86821.0,86820.0,0.00241202]
[1743004903441,0.67755227,86821.0,86820.0,0.00241202]
[1743004906412,0.67755227,86821.0,86820.0,0.00041202]
[1743004907861,0.55055227,86821.0,86820.0,0.00041202]
[1743004908307,0.30867627,86821.0,86820.0,0.00041202]
[1743004908511,0.30867627,86821.0,86820.0,0.01193002]
[1743004908512,0.3,86821.0,86820.0,0.01193002]
[1743004908680,0.01127927,86826.0,86822.0,0.011517]
[1743004908890,0.230347,86826.0,86822.0,0.011517]
[1743004909091,0.241869,86824.0,86820.0,0.00058152]
[1743004909458,0.3,86825.0,86820.0,0.23094052]
[1743004909885,0.3,86823.0,86820.0,0.23094052]
[1743004910292,0.3,86823.0,86822.0,0.02605785]
[1743004910896,0.241844,86833.0,86827.0,0.230343]
[1743004911246,0.3,86830.0,86827.0,0.230343]
[1743004911536,0.530335,86830.0,86827.0,0.230343]
[1743004911674,0.3,86830.0,86828.0,0.23034]
[1743004912083,0.011516,86830.0,86824.0,0.01454085]
[1743004912288,0.230351,86824.0,86822.0,0.002]
[1743004912487,0.24187,86823.0,86822.0,0.002]
[1743004912759,0.24187,86823.0,86822.0,0.1382]
[1743004913385,0.24187,86823.0,86822.0,0.1362]
[1743004913584,0.6167329,86823.0,86822.0,0.1362]
[1743004913803,0.54187,86823.0,86822.0,0.1362]
[1743004914220,0.541876,86821.0,86820.0,0.00058152]
[1743004915630,0.55050029,86821.0,86820.0,0.00058152]
[1743004915963,0.66475793,86821.0,86820.0,0.00058152]
[1743004916186,0.71405793,86821.0,86820.0,0.00058152]
[1743004916640,0.71405793,86821.0,86820.0,0.00458152]
[1743004917194,0.71405793,86821.0,86820.0,0.00058152]
[1743004917391,0.71405793,86821.0,86820.0,0.00358152]
[1743004917786,0.71405793,86821.0,86820.0,0.00058152]
[1743004918344,0.71405793,86821.0,86820.0,0.00358152]
[1743004919227,0.70254093,86821.0,86820.0,0.00358152]
[1743004919613,0.59980029,86821.0,86820.0,0.00058152]
[1743004921547,0.55050029,86821.0,86820.0,0.00058152]
[1743004923092,0.23898329,86821.0,86820.0,0.00058152]
[1743004923290,0.25050029,86821.0,86820.0,0.00058152]
[1743004923516,0.00862429,86821.0,86820.0,0.00058152]
[1743004923642,0.241876,86821.0,86820.0,0.00058152]
[1743004923845,0.541876,86821.0,86820.0,0.00058152]
[1743004924047,0.65613364,86821.0,86820.0,0.00058152]
[1743004924273,0.66466531,86821.0,86820.0,0.00058152]
[1743004929485,0.55040767,86821.0,86820.0,0.00058152]
[1743004931387,0.25040767,86821.0,86820.0,0.00058152]
[1743004931546,0.02038787,86821.0,86820.0,0.00058152]
[1743004931741,0.2422152,86821.0,86820.0,0.00058152]
[1743004931966,0.5422152,86821.0,86820.0,0.00058152]
[1743004932165,0.0003392,86821.0,86820.0,0.23094252]
[1743004932413,0.2422152,86821.0,86820.0,0.00058152]
[1743004932619,0.3003392,86821.0,86820.0,0.00058152]
[1743004932739,0.0003392,86821.0,86820.0,0.24858006]
[1743004932935,0.0003392,86821.0,86820.0,0.25700137]
[1743004933571,0.0003392,86821.0,86820.0,0.01512237]
[1743004933896,0.0003392,86821.0,86820.0,0.25700137]
[1743004934098,0.0003392,86821.0,86820.0,0.01512237]
[1743004934297,0.0003392,86821.0,86820.0,0.24548337]
[1743004934527,0.0003392,86821.0,86820.0,0.24848337]
[1743004934907,0.0003392,86821.0,86820.0,0.01812237]
[1743004935286,0.2306982,86821.0,86820.0,0.01812237]
[1743004935448,0.2306982,86821.0,86820.0,0.15404237]
[1743004935850,0.2422152,86821.0,86820.0,0.13650152]
[1743004936152,0.2422152,86821.0,86820.0,0.14150152]
[1743004937297,0.26370152,86821.0,86820.0,0.14150152]
[1743004938014,0.56370152,86821.0,86820.0,0.14150152]
[1743004938221,0.5422152,86821.0,86820.0,0.00558152]
[1743004938541,0.65647284,86821.0,86820.0,0.00558152]
[1743004938742,0.5422152,86821.0,86820.0,0.00558152]
[1743004939373,0.56566976,86821.0,86820.0,0.00558152]
[1743004939777,0.56566976,86821.0,86820.0,0.00058152]
[1743004940329,0.56566976,86821.0,86820.0,0.00458152]
[1743004940657,0.6799274,86821.0,86820.0,0.00058152]
[1743004940991,0.6799274,86821.0,86820.0,0.00158152]
[1743004941377,0.6799274,86821.0,86820.0,0.00058152]
[1743004941974,0.56566976,86821.0,86820.0,0.00058152]
[1743004942798,0.56566976,86821.0,86803.0,0.0001696]
[1743004942799,0.530404,86804.0,86803.0,0.0001696]
[1743004943001,0.530404,86804.0,86792.0,0.0001694]
[1743004943002,0.541954,86793.0,86792.0,0.0001694]
[1743004944215,0.56343717,86793.0,86792.0,0.0001694]
[1743004944402,0.6862332,86793.0,86792.0,0.00029203]
[1743004944978,0.57197556,86793.0,86792.0,0.00029203]
[1743004947803,0.33002156,86793.0,86792.0,0.00029203]
[1743004948008,0.57197556,86793.0,86792.0,0.00029203]
[1743004948387,0.33002156,86793.0,86792.0,0.13901203]
[1743004948614,0.34154256,86793.0,86792.0,0.13901203]
[1743004948989,0.33002156,86793.0,86792.0,0.00029203]
[1743004949215,0.33002156,86793.0,86792.0,0.13897203]
[1743004949216,0.34154256,86793.0,86792.0,0.13897203]
[1743004949948,0.33002156,86793.0,86792.0,0.13897203]
[1743004950170,0.32148317,86793.0,86792.0,0.13897203]
[1743004950924,0.32148317,86793.0,86792.0,0.36940703]
[1743004951437,0.02148317,86793.0,86792.0,0.38092803]
[1743004951853,0.230398,86806.0,86801.0,0.01152]
[1743004952059,0.011519,86806.0,86796.0,0.011521]
[1743004952211,0.3,86801.0,86799.0,0.230417]
[1743004952418,0.530412,86801.0,86799.0,0.230417]
[1743004952635,0.3,86801.0,86798.0,0.01454085]
[1743004952837,0.01152,86802.0,86798.0,0.01454085]
[1743004953041,0.02145284,86805.0,86801.0,0.01152]
[1743004953245,0.02145284,86805.0,86804.0,0.240924]
[1743004953643,0.3,86806.0,86803.0,0.230406]
[1743004953867,0.3,86806.0,86802.0,0.230408]
[1743004954066,0.530398,86806.0,86802.0,0.230408]
[1743004954258,0.3,86804.0,86801.0,0.241932]
[1743004954431,0.3,86805.0,86802.0,0.01152]
[1743004954628,0.3,86805.0,86803.0,0.230404]
[1743004954873,0.3,86805.0,86804.0,0.241924]
[1743004955258,0.3,86805.0,86804.0,0.25646485]
[1743004955512,0.3,86815.0,86811.0,0.230383]
[1743004955708,0.3,86815.0,86812.0,0.13844]
[1743004955915,0.530375,86815.0,86812.0,0.36882]
[1743004956163,0.02145522,86814.0,86813.0,0.25643685]
[1743004956290,0.02145522,86814.0,86813.0,0.01454085]
[1743004957572,0.3,86814.0,86813.0,0.01454085]
[1743004958444,0.301,86814.0,86813.0,0.01454085]
[1743004958665,0.23038,86813.0,86812.0,0.13844]
[1743004958873,0.011519,86811.0,86806.0,0.230398]
[1743004959078,0.011519,86808.0,86807.0,0.13804]
[1743004959285,0.541913,86808.0,86807.0,0.13804]
[1743004960789,0.541915,86807.0,86806.0,0.002]
[1743004960991,0.3,86807.0,86806.0,0.39653785]
[1743004961340,0.3,86807.0,86806.0,0.15262085]
[1743004961892,0.31804436,86808.0,86806.0,0.38301885]
[1743004962094,0.530392,86809.0,86807.0,0.01654085]
[1743004962444,0.530391,86809.0,86807.0,0.01454085]
[1743004963182,0.241912,86808.0,86807.0,0.003]
[1743004963472,0.241912,86808.0,86807.0,0.005]
[1743004963617,0.241912,86808.0,86807.0,0.002]
[1743004963821,0.241912,86808.0,86807.0,0.005]
[1743004964023,0.241912,86808.0,86807.0,0.14288]
[1743004964443,0.241912,86808.0,86807.0,0.13988]
[1743004964687,0.241912,86808.0,86807.0,0.14088]
[1743004964923,0.3,86809.0,86807.0,0.14088]
[1743004965119,0.530388,86810.0,86807.0,0.016519]
[1743004965392,0.31804463,86808.0,86807.0,0.005]
[1743004965627,0.54843763,86808.0,86807.0,0.14292]
[1743004965806,0.31804463,86808.0,86807.0,0.14292]
[1743004966012,0.31804463,86808.0,86807.0,0.13792]
[1743004966182,0.31804463,86808.0,86807.0,0.13992]
[1743004966505,0.31804463,86808.0,86807.0,0.14292]
[1743004966720,0.31804463,86808.0,86807.0,0.14092]
[1743004966916,0.54843763,86808.0,86807.0,0.13792]
[1743004967319,0.31804463,86808.0,86807.0,0.14092]
[1743004967632,0.54843763,86808.0,86807.0,0.14092]
[1743004967954,0.31804463,86808.0,86807.0,0.14092]
[1743004968136,0.54843763,86808.0,86807.0,0.14292]
[1743004969831,0.31804463,86808.0,86807.0,0.14292]
[1743004970359,0.54843763,86808.0,86807.0,0.14292]
[1743004971358,0.31804463,86808.0,86807.0,0.14292]
[1743004972127,0.54843763,86808.0,86807.0,0.14292]
[1743004972274,0.31804463,86808.0,86807.0,0.14292]
[1743004972677,0.3,86808.0,86807.0,0.14292]
[1743004973285,0.3,86808.0,86807.0,0.13792]
[1743004973780,0.3,86808.0,86807.0,0.14292]
[1743004973939,0.3,86808.0,86807.0,0.373316]
[1743004974139,0.3,86808.0,86807.0,0.370316]
[1743004974555,0.3,86808.0,86807.0,0.39637585]
[1743004975395,0.3,86808.0,86807.0,0.39837585]
[1743004975681,0.3180442,86808.0,86807.0,0.39437585]
[1743004975996,0.3180442,86808.0,86807.0,0.39937585]
[1743004976217,0.3180442,86808.0,86807.0,0.39737585]
[1743004976429,0.3180442,86808.0,86807.0,0.39437585]
[1743004976610,0.3180442,86808.0,86807.0,0.39637585]
[1743004976965,0.3180442,86808.0,86807.0,0.39937585]
[1743004977384,0.0180442,86808.0,86807.0,0.39637585]
[1743004977594,0.0180442,86808.0,86807.0,1.06173349]
[1743004977795,0.0180442,86808.0,86807.0,1.06473349]
[1743004978252,0.0180442,86808.0,86807.0,1.10062712]
[1743004978454,0.0180442,86808.0,86807.0,1.09862712]
[1743004978629,0.0180442,86808.0,86807.0,1.06473349]
[1743004978932,0.0180442,86808.0,86807.0,1.17599113]
[1743004979159,0.0180442,86808.0,86807.0,1.18099113]
[1743004979362,0.0180442,86808.0,86807.0,1.06473349]
[1743004979767,0.0180442,86808.0,86807.0,1.06173349]
[1743004979972,0.0180442,86808.0,86807.0,0.92381349]
[1743004980182,0.0180442,86808.0,86807.0,0.856095]
[1743004980386,0.0180442,86808.0,86807.0,0.82951562]
[1743004980788,0.0180442,86808.0,86807.0,0.84405647]
[1743004981194,0.018383,86808.0,86807.0,0.84405647]
[1743004981406,0.018383,86808.0,86807.0,0.806395]
[1743004981763,0.0003388,86808.0,86807.0,0.806395]
[1743004981968,0.0003388,86808.0,86807.0,0.82093585]
[1743004983689,0.0003388,86808.0,86807.0,0.80941685]
[1743004984096,0.0003388,86808.0,86807.0,0.82093585]
[1743004984505,0.2307318,86808.0,86807.0,0.57902085]
[1743004984668,0.2307318,86808.0,86807.0,0.80941685]
[1743004984669,0.0003388,86808.0,86807.0,0.80941685]
[1743004985308,0.0003388,86808.0,86807.0,0.57902085]
[1743004985631,0.2307318,86808.0,86807.0,0.57902085]
[1743004985854,0.0003388,86808.0,86807.0,0.57902085]
[1743004986429,0.2422508,86808.0,86807.0,0.013]
[1743004986635,0.2422508,86808.0,86807.0,0.14976]
[1743004987822,0.2307318,86808.0,86807.0,0.14976]
[1743004988022,0.2307318,86808.0,86807.0,0.14276]
[1743004988441,0.2422508,86808.0,86807.0,0.13976]
[1743004988637,0.0003388,86808.0,86807.0,0.14376]
[1743004988961,0.2422508,86808.0,86807.0,0.14376]
[1743004989141,0.2422508,86808.0,86807.0,0.13976]
[1743004989341,0.0003388,86808.0,86807.0,0.13976]
[1743004989569,0.0003388,86808.0,86807.0,0.381675]
[1743004989773,0.0003388,86808.0,86807.0,0.385675]
[1743004989974,0.0003388,86808.0,86807.0,0.40021585]
[1743004990677,0.0003388,86808.0,86807.0,0.26345585]
[1743004990943,0.0003388,86808.0,86807.0,0.40009585]
[1743004991680,0.0003388,86808.0,86807.0,0.02154085]
[1743004991789,0.2422508,86808.0,86807.0,0.14396]
[1743004995378,0.5422508,86808.0,86807.0,0.007]
[1743004995826,0.56029508,86808.0,86807.0,0.007]
[1743004998068,0.56029508,86808.0,86807.0,0.003]
[1743004998263,0.56029508,86808.0,86804.0,0.5986094]
[1743004998264,0.241921,86805.0,86804.0,0.5986094]
[1743004998632,0.541921,86805.0,86804.0,0.5986094]
[1743004998782,0.541921,86805.0,86804.0,0.0001694]
[1743004998783,0.623021,86805.0,86804.0,0.0001694]
[1743004998981,0.65065663,86805.0,86804.0,0.0001694]
[1743004999944,0.65065663,86805.0,86792.0,0.00029203]
[1743004999945,0.624354,86793.0,86792.0,0.00029203]
[1743005000097,1.80744,86793.0,86792.0,0.00029203]
[1743005000762,1.80744,86793.0,86792.0,3e-08]
[1743005000763,0.69200427,86793.0,86792.0,3e-08]
[1743005001139,0.541973,86786.0,86785.0,3e-08]
[1743005001347,0.73923064,86786.0,86785.0,6.9e-07]